bitfinex-derivatives/quotes_BTCF0:USTF0_20240913
["timestamp","ask_amount","ask_price","bid_price","bid_amount"]
[1726268617976,0.0459,60560.0,60557.0,0.3608]
[1726268618176,0.082514,60563.0,60558.0,0.082519]
[1726268618780,0.0459,60567.0,60557.0,0.3608]
[1726268619088,0.0459,60567.0,60557.0,0.36699207]
[1726268619284,0.001,60560.0,60557.0,0.36699207]
[1726268619472,0.08252,60558.0,60557.0,0.36699207]
[1726268619678,0.001,60560.0,60557.0,0.36699207]
[1726268620177,0.002,60560.0,60559.0,0.082518]
[1726268620777,0.001,60560.0,60559.0,0.082518]
[1726268621178,0.082516,60561.0,60559.0,0.082518]
[1726268621381,0.0469,60567.0,60558.0,0.3608]
[1726268621692,0.0459,60567.0,60565.0,0.3608]
[1726268621894,0.128407,60567.0,60565.0,0.3608]
[1726268623093,0.490803,60571.0,60565.0,0.3608]
[1726268623291,0.490803,60571.0,60569.0,0.082504]
[1726268624390,0.494803,60571.0,60569.0,0.082504]
[1726268624892,0.492803,60571.0,60569.0,0.082504]
[1726268625996,0.082503,60570.0,60569.0,0.082504]
[1726268627001,0.082507,60568.0,60565.0,0.00606437]
[1726268627303,0.082507,60568.0,60566.0,0.082509]
[1726268628095,0.082507,60567.0,60566.0,0.082509]
[1726268630094,0.001,60568.0,60563.0,0.082512]
[1726268630400,0.002,60567.0,60562.0,0.3608]
[1726268630990,0.001,60567.0,60562.0,0.3608]
[1726268631193,0.082511,60565.0,60562.0,0.3608]
[1726268631395,0.082522,60557.0,60554.0,0.773525]
[1726268631598,0.082522,60557.0,60554.0,0.768325]
[1726268631996,0.082522,60557.0,60554.0,0.443325]
[1726268632198,0.082522,60557.0,60554.0,0.4494737]
[1726268632791,0.082522,60557.0,60555.0,0.082524]
[1726268633401,0.083522,60557.0,60555.0,0.082524]
[1726268633791,0.082522,60557.0,60555.0,0.082524]
[1726268634001,0.084522,60557.0,60555.0,0.082524]
[1726268634705,0.083522,60557.0,60555.0,0.082524]
[1726268635004,0.128623,60556.0,60552.0,0.082527]
[1726268635205,0.082524,60555.0,60552.0,0.082527]
[1726268636901,0.082526,60554.0,60552.0,0.082527]
[1726268637310,0.001,60555.0,60553.0,0.082526]
[1726268637605,0.084524,60555.0,60553.0,0.082526]
[1726268638001,0.083524,60555.0,60553.0,0.082526]
[1726268638207,0.084525,60554.0,60553.0,0.082526]
[1726268638902,0.082529,60551.0,60550.0,0.3608]
[1726268639105,0.001,60554.0,60549.0,0.082531]
[1726268639307,0.0472,60550.0,60549.0,0.082531]
[1726268640601,0.0482,60550.0,60549.0,0.082531]
[1726268641005,0.001,60550.0,60549.0,0.082531]
[1726268641209,0.002,60550.0,60549.0,0.082531]
[1726268643606,0.002,60550.0,60549.0,0.165063]
[1726268643807,0.0471,60564.0,60562.0,0.082514]
[1726268644010,0.0452,60570.0,60562.0,0.3608]
[1726268644208,0.0452,60570.0,60566.0,0.082507]
[1726268644209,0.03187294,60569.0,60566.0,0.082507]
[1726268644400,0.0452,60570.0,60566.0,0.082507]
[1726268645202,0.082507,60568.0,60566.0,0.082507]
[1726268645810,0.082507,60567.0,60566.0,0.082507]
[1726268646011,0.082507,60567.0,60562.0,0.36714462]
[1726268646012,0.005,60569.0,60562.0,0.36714462]
[1726268646207,0.082522,60556.0,60555.0,0.3646]
[1726268646406,0.0088,60569.0,60557.0,0.082521]
[1726268646614,0.03187515,60568.0,60557.0,0.082521]
[1726268646913,0.08252,60558.0,60557.0,0.082521]
[1726268647401,0.082522,60556.0,60555.0,0.3608]
[1726268647605,0.082522,60556.0,60555.0,0.36722555]
[1726268648201,0.11439973,60556.0,60555.0,0.36722555]
[1726268648609,0.11539973,60556.0,60555.0,0.36722555]
[1726268649208,0.11539973,60556.0,60555.0,0.44974955]
[1726268649607,0.11639973,60556.0,60555.0,0.44974955]
[1726268649810,0.11639973,60556.0,60555.0,0.36722555]
[1726268650210,0.11539973,60556.0,60555.0,0.36722555]
[1726268650909,0.11439973,60556.0,60555.0,0.36722555]
[1726268651111,0.11539973,60556.0,60555.0,0.36722555]
[1726268652009,0.69332173,60556.0,60555.0,0.3608]
[1726268652209,0.082533,60551.0,60550.0,0.08253]
[1726268652916,0.082525,60554.0,60553.0,0.082524]
[1726268653116,0.082525,60554.0,60550.0,0.36723161]
[1726268653117,0.082529,60551.0,60550.0,0.36723161]
[1726268653416,0.11440818,60551.0,60550.0,0.36723161]
[1726268653816,0.082529,60551.0,60550.0,0.36723161]
[1726268654012,0.083529,60551.0,60550.0,0.36723161]
[1726268654206,0.083529,60551.0,60544.0,0.3608]
[1726268654207,0.08253,60550.0,60544.0,0.3608]
[1726268654413,0.082533,60549.0,60548.0,0.082532]
[1726268654907,0.002,60551.0,60545.0,0.082537]
[1726268655510,0.082526,60554.0,60545.0,0.082537]
[1726268655716,0.3608,60557.0,60539.0,0.0038]
[1726268655717,0.082544,60540.0,60539.0,0.0038]
[1726268655914,0.082546,60539.0,60537.0,0.082548]
[1726268656719,0.1428,60550.0,60535.0,0.3608]
[1726268656720,0.08255,60536.0,60535.0,0.3608]
[1726268656930,0.08255,60536.0,60535.0,0.443351]
[1726268657413,0.08255,60536.0,60535.0,0.3608]
[1726268658022,0.08255,60536.0,60535.0,0.36712021]
[1726268659415,0.08455,60536.0,60535.0,0.36712021]
[1726268660412,0.08455,60536.0,60535.0,0.44967121]
[1726268660615,0.002,60536.0,60535.0,0.44967121]
[1726268661015,0.001,60536.0,60535.0,0.44967121]
[1726268661218,0.002,60536.0,60535.0,0.44967121]
[1726268674028,0.002,60536.0,60535.0,0.53222221]
[1726268675549,0.002,60536.0,60535.0,0.44967121]
[1726268678039,0.08455,60536.0,60535.0,0.44967121]
[1726268679041,0.08455,60536.0,60535.0,0.36712021]
[1726268679432,0.13145,60536.0,60535.0,0.36712021]
[1726268679628,0.08455,60536.0,60535.0,0.44967121]
[1726268682737,0.08455,60536.0,60535.0,0.36712021]
[1726268685345,0.08455,60536.0,60535.0,0.44967121]
[1726268685346,0.11643523,60536.0,60535.0,0.44967121]
[1726268686443,0.11643523,60536.0,60535.0,0.36712021]
[1726268689855,0.11643632,60536.0,60535.0,0.36712021]
[1726268690560,0.35473835,60536.0,60535.0,0.00632021]
[1726268690743,0.082556,60531.0,60530.0,0.082557]
[1726268690944,0.11444234,60531.0,60530.0,0.082557]
[1726268691950,0.11544234,60531.0,60530.0,0.082557]
[1726268692342,0.11644234,60531.0,60530.0,0.082557]
[1726268692743,0.11644234,60531.0,60530.0,0.443357]
[1726268693146,0.11644413,60531.0,60530.0,0.443357]
[1726268693449,0.084556,60531.0,60530.0,0.443357]
[1726268693954,0.084556,60531.0,60530.0,0.082557]
[1726268694254,0.084556,60531.0,60530.0,0.443357]
[1726268694643,0.002,60531.0,60530.0,0.443357]
[1726268695448,0.084556,60531.0,60530.0,0.443357]
[1726268696842,0.084556,60531.0,60530.0,0.3608]
[1726268702557,0.082559,60529.0,60528.0,0.08913404]
[1726268702860,0.082559,60529.0,60528.0,0.44993404]
[1726268703454,0.11444823,60529.0,60528.0,0.36737404]
[1726268703752,0.11544823,60529.0,60528.0,0.36737404]
[1726268703961,0.11644823,60529.0,60528.0,0.36737404]
[1726268706258,0.03388844,60529.0,60528.0,0.44993404]
[1726268706554,0.002,60529.0,60528.0,0.44993404]
[1726268711453,0.0038,60539.0,60538.0,0.082547]
[1726268711760,0.082545,60539.0,60538.0,0.3608]
[1726268712861,0.083545,60539.0,60538.0,0.3608]
[1726268713050,0.083545,60539.0,60538.0,0.443347]
[1726268713051,0.001,60539.0,60538.0,0.443347]
[1726268713660,0.002,60539.0,60538.0,0.44991238]
[1726268717956,0.03388282,60539.0,60538.0,0.44991238]
[1726268718965,0.002,60539.0,60538.0,0.44991238]
[1726268723059,0.002,60539.0,60538.0,0.08911238]
[1726268723264,0.002,60539.0,60538.0,0.44991238]
[1726268736276,0.11643045,60539.0,60538.0,0.36736538]
[1726268736468,0.21033045,60539.0,60538.0,0.36736538]
[1726268736871,0.21032901,60539.0,60538.0,0.36736538]
[1726268737172,0.178445,60539.0,60538.0,0.36736538]
[1726268737777,0.21032899,60539.0,60538.0,0.36736538]
[1726268738079,0.178445,60539.0,60538.0,0.36736538]
[1726268738379,0.21032896,60539.0,60538.0,0.36736538]
[1726268738578,0.21032788,60539.0,60538.0,0.36736538]
[1726268738972,0.32584072,60539.0,60538.0,0.36736538]
[1726268739170,0.33329378,60539.0,60538.0,0.00656538]
[1726268739469,0.25933175,60539.0,60534.0,0.082552]
[1726268739674,0.082551,60535.0,60534.0,0.082552]
[1726268739875,0.11443388,60535.0,60534.0,0.082552]
[1726268740069,0.082551,60535.0,60534.0,0.082552]
[1726268740275,0.03188603,60535.0,60534.0,0.082552]
[1726268740682,0.0949,60539.0,60536.0,0.082548]
[1726268740979,0.177445,60539.0,60538.0,0.3608]
[1726268741172,0.20932965,60539.0,60538.0,0.3608]
[1726268741670,0.20832965,60539.0,60538.0,0.443347]
[1726268742069,0.20932965,60539.0,60538.0,0.3608]
[1726268743278,0.20932965,60539.0,60535.0,0.08255]
[1726268743279,0.12778465,60539.0,60535.0,0.08255]
[1726268743473,0.08255,60536.0,60535.0,0.08255]
[1726268743675,0.11443465,60536.0,60535.0,0.44335]
[1726268744468,0.1144356,60536.0,60535.0,0.44335]
[1726268744679,0.1154356,60536.0,60535.0,0.44335]
[1726268744874,0.1154358,60536.0,60535.0,0.44335]
[1726268745076,0.19907812,60536.0,60535.0,0.44335]
[1726268745376,0.1154358,60536.0,60535.0,0.44335]
[1726268745575,0.08355,60536.0,60535.0,0.44335]
[1726268746376,0.08455,60536.0,60535.0,0.3608]
[1726268746571,0.08455,60536.0,60531.0,0.04947357]
[1726268746572,0.002,60536.0,60531.0,0.082556]
[1726268746882,0.082555,60533.0,60532.0,0.082554]
[1726268747580,0.3608,60533.0,60526.0,0.05327357]
[1726268747781,0.082559,60530.0,60529.0,0.082558]
[1726268749485,0.083559,60530.0,60529.0,0.082558]
[1726268749686,0.084559,60530.0,60529.0,0.082558]
[1726268751302,0.084559,60530.0,60522.0,0.0038]
[1726268751303,0.49564,60529.0,60522.0,0.0038]
[1726268751502,0.082571,60520.0,60519.0,0.0038]
[1726268751707,0.3608,60523.0,60511.0,0.086383]
[1726268751708,0.082574,60518.0,60511.0,0.086383]
[1726268751907,0.082574,60518.0,60511.0,0.082583]
[1726268752205,0.3608,60516.0,60511.0,0.082583]
[1726268752605,0.0471,60515.0,60511.0,0.082583]
[1726268753208,0.129678,60515.0,60510.0,0.00650279]
[1726268753507,0.129678,60515.0,60506.0,0.08259]
[1726268753508,0.0471,60515.0,60506.0,0.08259]
[1726268754100,0.0481,60515.0,60506.0,0.08259]
[1726268754301,0.082581,60514.0,60506.0,0.08259]
[1726268754899,0.082581,60514.0,60506.0,0.08887526]
[1726268755211,0.082581,60513.0,60507.0,0.082589]
[1726268755405,0.082581,60513.0,60506.0,0.00628526]
[1726268755406,0.002,60515.0,60509.0,0.082585]
[1726268755606,0.084579,60515.0,60509.0,0.082585]
[1726268755908,0.001,60514.0,60509.0,0.082585]
[1726268756399,0.082582,60512.0,60504.0,0.44981354]
[1726268756598,0.082582,60512.0,60504.0,0.36722154]
[1726268756813,0.082582,60512.0,60507.0,0.082589]
[1726268758209,0.083582,60512.0,60508.0,0.082587]
[1726268759100,0.001,60512.0,60511.0,0.082584]
[1726268759306,0.0038,60521.0,60520.0,0.082571]
[1726268759510,0.3608,60523.0,60522.0,0.082569]
[1726268760014,0.443367,60523.0,60518.0,0.082574]
[1726268760215,0.3608,60523.0,60518.0,0.082574]
[1726268760412,0.082569,60522.0,60518.0,0.082574]
[1726268761326,0.08257,60521.0,60518.0,0.082574]
[1726268761710,0.001,60522.0,60512.0,0.1423]
[1726268762216,0.001,60522.0,60519.0,0.082572]
[1726268762710,0.002,60522.0,60519.0,0.082572]
[1726268763216,0.001,60522.0,60519.0,0.082572]
[1726268763405,0.002,60522.0,60519.0,0.084572]
[1726268763611,0.08257,60521.0,60519.0,0.002]
[1726268764108,0.002,60522.0,60519.0,0.002]
[1726268764109,0.082571,60520.0,60519.0,0.002]
[1726268764305,0.002,60522.0,60519.0,0.002]
[1726268764508,0.002,60522.0,60521.0,0.08257]
[1726268764707,0.001,60522.0,60521.0,0.08257]
[1726268765612,0.002,60522.0,60521.0,0.08257]
[1726268766114,0.001,60522.0,60521.0,0.08257]
[1726268766313,0.3608,60524.0,60523.0,0.082567]
[1726268767109,0.3608,60524.0,60523.0,0.08895497]
[1726268767308,0.0038,60532.0,60531.0,0.082556]
[1726268767612,0.3608,60540.0,60529.0,0.082559]
[1726268767812,0.3608,60540.0,60528.0,0.3608]
[1726268768008,0.3608,60540.0,60537.0,0.082548]
[1726268769003,0.3618,60540.0,60537.0,0.082548]
[1726268770313,0.3618,60540.0,60538.0,0.082546]
[1726268770509,0.3608,60540.0,60538.0,0.082546]
[1726268771112,0.3618,60540.0,60538.0,0.082546]
[1726268771915,0.3628,60540.0,60538.0,0.082546]
[1726268772908,0.3618,60540.0,60539.0,0.082545]
[1726268773719,0.3628,60540.0,60539.0,0.082545]
[1726268773920,0.3618,60540.0,60539.0,0.082545]
[1726268774427,0.3608,60540.0,60539.0,0.082545]
[1726268774621,0.3628,60540.0,60539.0,0.083545]
[1726268775212,0.3608,60540.0,60539.0,0.083545]
[1726268775417,0.443344,60540.0,60539.0,0.001]
[1726268776121,0.444344,60540.0,60539.0,0.001]
[1726268776420,0.4762301,60540.0,60539.0,0.001]
[1726268776815,0.082546,60539.0,60537.0,0.00654622]
[1726268777015,0.082546,60539.0,60535.0,0.08255]
[1726268777921,0.08255,60536.0,60535.0,0.00645177]
[1726268778225,0.3618,60540.0,60528.0,0.3608]
[1726268778520,0.3608,60530.0,60527.0,0.082562]
[1726268778710,0.082558,60531.0,60528.0,0.08256]
[1726268778912,0.443358,60530.0,60528.0,0.08256]
[1726268779308,0.443358,60530.0,60524.0,0.10097835]
[1726268779309,0.443358,60530.0,60525.0,0.082564]
[1726268780724,0.443358,60530.0,60525.0,0.083564]
[1726268780725,0.444358,60530.0,60525.0,0.083564]
[1726268781228,0.084558,60530.0,60525.0,0.083564]
[1726268781417,0.084558,60530.0,60526.0,0.082563]
[1726268783119,0.08256,60529.0,60525.0,0.001]
[1726268783321,0.002,60530.0,60525.0,0.001]
[1726268783322,0.082563,60527.0,60525.0,0.001]
[1726268784520,0.083563,60527.0,60525.0,0.001]
[1726268785224,0.084563,60527.0,60525.0,0.001]
[1726268785925,0.083563,60527.0,60524.0,0.08914335]
[1726268786226,0.084563,60527.0,60525.0,0.001]
[1726268793332,0.083563,60527.0,60524.0,0.08914335]
[1726268793528,0.084563,60527.0,60525.0,0.001]
[1726268794531,0.002,60527.0,60525.0,0.001]
[1726268794725,0.002,60527.0,60526.0,0.082563]
[1726268795434,0.002,60527.0,60526.0,0.129663]
[1726268795835,0.001,60527.0,60526.0,0.129663]
[1726268796136,0.002,60527.0,60526.0,0.129663]
[1726268796337,0.002,60527.0,60526.0,0.212226]
[1726268796642,0.002,60527.0,60526.0,0.260226]
[1726268796835,0.3608,60532.0,60531.0,0.082556]
[1726268797041,0.39268708,60532.0,60531.0,0.082556]
[1726268797836,0.11552812,60540.0,60526.0,0.0511]
[1726268798031,0.03196664,60538.0,60529.0,0.082559]
[1726268798231,0.03196664,60537.0,60529.0,0.082559]
[1726268798437,0.03196664,60536.0,60529.0,0.082559]
[1726268798733,0.082544,60541.0,60529.0,0.082559]
[1726268799042,0.3608,60530.0,60529.0,0.082559]
[1726268799240,0.16562812,60542.0,60528.0,0.3608]
[1726268799433,0.16562812,60542.0,60537.0,0.082548]
[1726268799434,0.03209055,60538.0,60537.0,0.082548]
[1726268799632,0.16182812,60542.0,60538.0,0.082547]
[1726268799633,0.0463,60542.0,60538.0,0.082547]
[1726268799840,0.39291523,60539.0,60538.0,0.082547]
[1726268800342,0.3608,60539.0,60538.0,0.082547]
[1726268800929,0.3678,60539.0,60538.0,0.082547]
[1726268802535,0.3638,60539.0,60538.0,0.082547]
[1726268802736,0.3638,60539.0,60538.0,0.084547]
[1726268803239,0.3638,60539.0,60538.0,0.082547]
[1726268803240,0.3708,60539.0,60538.0,0.082547]
[1726268803639,0.3678,60539.0,60538.0,0.082547]
[1726268803839,0.3688,60539.0,60538.0,0.083547]
[1726268805431,0.3708,60539.0,60538.0,0.082547]
[1726268805644,0.3708,60539.0,60538.0,0.08779476]
[1726268805841,0.003,60539.0,60538.0,0.08979476]
[1726268806341,0.11552812,60544.0,60543.0,0.08254]
[1726268808754,0.11752812,60544.0,60543.0,0.08354]
[1726268809139,0.11552812,60544.0,60543.0,0.08354]
[1726268809345,0.11852812,60544.0,60543.0,0.08254]
[1726268809546,0.11852812,60544.0,60543.0,0.08354]
[1726268810240,0.11552812,60544.0,60543.0,0.08354]
[1726268810543,0.11852812,60544.0,60543.0,0.08354]
[1726268811733,0.11852812,60544.0,60543.0,0.08254]
[1726268811938,0.11852812,60544.0,60543.0,0.001]
[1726268812146,0.20106712,60544.0,60543.0,0.001]
[1726268812340,0.11782813,60544.0,60543.0,0.001]
[1726268812545,0.11782813,60544.0,60538.0,0.00524776]
[1726268812546,0.11482813,60544.0,60538.0,0.00524776]
[1726268812747,0.085539,60544.0,60543.0,0.001]
[1726268812940,0.11781116,60544.0,60543.0,0.001]
[1726268813246,0.11781153,60544.0,60543.0,0.001]
[1726268813438,0.085539,60544.0,60543.0,0.001]
[1726268813643,0.082539,60544.0,60543.0,0.001]
[1726268813850,0.084539,60544.0,60543.0,0.001]
[1726268814251,0.082539,60544.0,60543.0,0.001]
[1726268814550,0.084539,60544.0,60543.0,0.001]
[1726268815852,0.084539,60544.0,60541.0,0.082541]
[1726268816145,0.085539,60544.0,60543.0,0.001]
[1726268816545,0.002,60544.0,60543.0,0.001]
[1726268817043,0.3608,60545.0,60543.0,0.001]
[1726268817249,0.001,60544.0,60543.0,0.001]
[1726268817554,0.44429801,60545.0,60543.0,0.001]
[1726268817755,0.002,60544.0,60543.0,0.001]
[1726268817955,0.002,60544.0,60543.0,0.00601231]
[1726268818250,0.3628,60544.0,60543.0,0.00601231]
[1726268818451,0.445339,60544.0,60543.0,0.00601231]
[1726268819344,0.443339,60544.0,60543.0,0.00601231]
[1726268819753,0.445339,60544.0,60543.0,0.00601231]
[1726268820148,0.445339,60544.0,60543.0,0.08855231]
[1726268820355,0.445339,60544.0,60543.0,0.00601231]
[1726268820552,1.023398,60544.0,60543.0,0.00601231]
[1726268820754,1.05550757,60544.0,60543.0,0.00601231]
[1726268821049,0.55998757,60544.0,60543.0,0.00601231]
[1726268822456,0.55798757,60544.0,60543.0,0.00601231]
[1726268822653,0.56098757,60544.0,60543.0,0.00601231]
[1726268823645,0.20018757,60544.0,60543.0,0.00601231]
[1726268823851,0.11770849,60544.0,60543.0,0.08855231]
[1726268824056,0.003,60544.0,60543.0,0.08855231]
[1726268825155,0.003,60544.0,60543.0,0.08755231]
[1726268825354,0.003,60544.0,60543.0,0.08855231]
[1726268825560,0.082536,60546.0,60544.0,0.082539]
[1726268826663,0.086536,60546.0,60544.0,0.082539]
[1726268827454,0.39322932,60545.0,60544.0,0.082539]
[1726268827658,0.03242932,60545.0,60544.0,0.082539]
[1726268827965,0.086536,60546.0,60544.0,0.082539]
[1726268828464,0.0325138,60545.0,60544.0,0.082539]
[1726268828859,0.0325138,60545.0,60543.0,0.00501231]
[1726268828860,0.082539,60544.0,60543.0,0.00501231]
[1726268829051,0.08254,60543.0,60539.0,0.082545]
[1726268829258,0.36572,60545.0,60539.0,0.082545]
[1726268829259,0.27075991,60542.0,60539.0,0.082545]
[1726268829463,0.082544,60540.0,60536.0,0.082548]
[1726268829766,0.082547,60538.0,60536.0,0.08777183]
[1726268829966,0.0325138,60537.0,60536.0,0.08777183]
[1726268831271,0.0325138,60537.0,60531.0,0.22591183]
[1726268831469,0.3608,60498.0,60469.0,0.09070077]
[1726268831667,0.3608,60498.0,60450.0,0.15319986]
[1726268831668,0.3608,60460.0,60444.0,0.0825202]
[1726268831869,0.67199,60445.0,60444.0,0.12811514]
[1726268832172,0.082624,60482.0,60425.0,0.52374161]
[1726268832173,0.01314719,60456.0,60440.0,0.08268]
[1726268832476,0.13077475,60465.0,60454.0,0.3608]
[1726268832666,0.4752104,60471.0,60469.0,0.001]
[1726268832667,0.10278475,60470.0,60469.0,0.001]
[1726268832872,0.0501393,60472.0,60469.0,0.001]
[1726268833069,0.50885615,60477.0,60474.0,0.082634]
[1726268833265,0.3608,60496.0,60476.0,0.3608]
[1726268833474,0.32618368,60496.0,60483.0,0.3608]
[1726268833666,0.3608,60501.0,60500.0,0.082599]
[1726268833868,0.3608,60501.0,60465.0,0.3608]
[1726268834180,0.3608,60495.0,60470.0,0.3608]
[1726268834372,0.3608,60495.0,60488.0,0.082615]
[1726268835075,0.3608,60495.0,60490.0,0.082612]
[1726268835274,0.3608,60495.0,60492.0,0.082608]
[1726268835967,0.3618,60495.0,60492.0,0.082608]
[1726268836369,0.3608,60494.0,60492.0,0.082608]
[1726268836568,0.3608,60494.0,60492.0,0.096608]
[1726268837071,0.153602,60494.0,60493.0,0.49592]
[1726268837270,0.3608,60511.0,60493.0,0.85672]
[1726268837472,0.3608,60511.0,60493.0,0.3608]
[1726268837771,0.3608,60511.0,60494.0,0.49584]
[1726268837971,0.3608,60522.0,60518.0,0.082573]
[1726268838166,0.3608,60522.0,60520.0,0.082571]
[1726268838573,0.3608,60522.0,60521.0,0.49568]
[1726268839075,0.3608,60522.0,60521.0,1.09568]
[1726268839276,0.3628,60522.0,60521.0,1.09568]
[1726268839674,0.3628,60522.0,60521.0,1.10368]
[1726268840471,0.002,60522.0,60521.0,1.10368]
[1726268840676,0.3608,60536.0,60535.0,0.082551]
[1726268840864,0.18096153,60577.0,60535.0,0.3608]
[1726268840865,0.3608,60550.0,60535.0,0.3608]
[1726268841070,0.3608,60550.0,60549.0,0.082532]
[1726268841265,0.3608,60559.0,60542.0,0.3608]
[1726268841472,0.3608,60559.0,60547.0,0.3608]
[1726268841673,0.3608,60559.0,60557.0,0.08252]
[1726268842268,0.3608,60559.0,60535.0,0.3618]
[1726268842479,0.3608,60553.0,60546.0,0.082535]
[1726268842679,0.3608,60553.0,60547.0,0.019]
[1726268843070,0.3608,60553.0,60548.0,0.49544]
[1726268843270,0.3608,60559.0,60552.0,0.082527]
[1726268843665,0.10030464,60558.0,60547.0,0.3728]
[1726268843877,0.10024476,60557.0,60547.0,0.3728]
[1726268844079,0.3608,60559.0,60552.0,0.082527]
[1726268844080,0.10025632,60556.0,60552.0,0.082527]
[1726268844268,0.3608,60554.0,60552.0,0.082527]
[1726268844470,0.3608,60554.0,60537.0,0.3608]
[1726268844678,0.3608,60548.0,60541.0,0.082542]
[1726268845477,0.3608,60548.0,60547.0,0.005]
[1726268845870,0.3608,60548.0,60541.0,0.012]
[1726268846074,0.3618,60548.0,60541.0,0.026]
[1726268846683,0.001,60548.0,60541.0,0.0310815]
[1726268847370,0.3608,60554.0,60541.0,0.0170815]
[1726268847683,0.001,60548.0,60547.0,0.013]
[1726268848080,0.001,60548.0,60547.0,1.10848]
[1726268848281,0.001,60548.0,60547.0,1.09548]
[1726268848782,0.001,60548.0,60547.0,1.178015]
[1726268848981,0.3608,60554.0,60548.0,0.082533]
[1726268849170,0.3608,60554.0,60549.0,0.082531]
[1726268849374,0.3608,60554.0,60547.0,0.013]
[1726268849771,0.3608,60554.0,60547.0,0.02]
[1726268850178,0.3608,60554.0,60552.0,0.082527]
[1726268850879,0.3608,60554.0,60549.0,0.086532]
[1726268850880,0.09894428,60553.0,60549.0,0.086532]
[1726268851181,0.3608,60554.0,60549.0,0.086532]
[1726268851381,0.09893695,60553.0,60549.0,0.086532]
[1726268851582,0.3608,60554.0,60549.0,0.086532]
[1726268852082,0.3608,60554.0,60549.0,0.097532]
[1726268852083,0.001,60553.0,60549.0,0.097532]
[1726268852591,0.001,60553.0,60549.0,0.015]
[1726268852882,0.3618,60554.0,60549.0,0.015]
[1726268853273,0.3618,60554.0,60549.0,0.011]
[1726268853886,0.3618,60554.0,60549.0,0.016]
[1726268854575,0.001,60554.0,60549.0,0.02114942]
[1726268854777,0.001,60553.0,60552.0,0.082528]
[1726268855174,0.001,60553.0,60549.0,0.02114942]
[1726268855581,0.3618,60554.0,60549.0,0.011]
[1726268856089,0.3618,60554.0,60552.0,0.002]
[1726268856588,0.3618,60554.0,60549.0,0.02113592]
[1726268857281,0.3618,60554.0,60552.0,0.002]
[1726268858379,0.0473,60553.0,60552.0,0.002]
[1726268858787,0.0483,60553.0,60551.0,0.082528]
[1726268859483,0.0483,60553.0,60552.0,0.001]
[1726268859687,0.0483,60553.0,60552.0,0.009]
[1726268859885,0.0483,60553.0,60552.0,0.008]
[1726268860482,0.0483,60553.0,60552.0,0.001]
[1726268861588,0.0483,60553.0,60549.0,0.03986984]
[1726268862089,0.0483,60553.0,60552.0,0.001]
[1726268862289,0.0473,60553.0,60552.0,0.009]
[1726268862490,0.0483,60553.0,60552.0,0.009]
[1726268863091,0.0473,60553.0,60549.0,0.04906885]
[1726268863293,0.0483,60553.0,60552.0,0.008]
[1726268863685,0.14643381,60553.0,60552.0,0.009]
[1726268863889,0.0473,60553.0,60552.0,0.001]
[1726268864085,0.14644456,60553.0,60552.0,0.009]
[1726268864393,0.14644456,60553.0,60497.0,0.3608]
[1726268864394,0.3608,60548.0,60497.0,0.3608]
[1726268864597,0.3608,60514.0,60507.0,0.082589]
[1726268864896,0.09631807,60513.0,60508.0,0.082588]
[1726268865091,0.09628737,60512.0,60508.0,0.082588]
[1726268865295,0.3608,60509.0,60504.0,0.40396439]
[1726268865502,0.09613113,60508.0,60505.0,0.082592]
[1726268865796,0.09602405,60507.0,60505.0,0.082592]
[1726268865987,0.09602405,60506.0,60505.0,0.082592]
[1726268866296,0.09602405,60506.0,60504.0,0.40396439]
[1726268866492,0.09602405,60505.0,60504.0,0.40396439]
[1726268866694,0.09602405,60508.0,60504.0,0.40396439]
[1726268866998,0.09602405,60508.0,60504.0,0.41796439]
[1726268867384,0.21050677,60508.0,60504.0,0.41796439]
[1726268867585,0.11448272,60508.0,60504.0,0.41796439]
[1726268867989,0.096026,60507.0,60504.0,0.41796439]
[1726268868292,0.096026,60507.0,60504.0,0.40396439]
[1726268868495,0.11448272,60508.0,60504.0,0.41796439]
[1726268868698,0.47528272,60508.0,60504.0,0.41796439]
[1726268868994,0.11448272,60505.0,60504.0,0.33533182]
[1726268869195,0.20699478,60505.0,60504.0,0.33533182]
[1726268869695,0.001,60506.0,60504.0,0.32933182]
[1726268869886,0.09579952,60505.0,60504.0,0.32933182]
[1726268870088,0.20610102,60507.0,60504.0,0.32933182]
[1726268870290,0.20610102,60506.0,60504.0,0.32933182]
[1726268870611,0.09579952,60505.0,60504.0,0.32933182]
[1726268870793,0.09679952,60505.0,60504.0,0.32933182]
[1726268871193,0.09679952,60505.0,60504.0,0.32133182]
[1726268871389,0.09679952,60505.0,60504.0,0.32833182]
[1726268871886,0.2068448,60505.0,60504.0,0.32833182]
[1726268872087,0.33768219,60505.0,60504.0,0.32833182]
[1726268872396,0.2068448,60505.0,60504.0,0.32133182]
[1726268872603,0.2068448,60505.0,60504.0,0.32833182]
[1726268872794,0.2058448,60505.0,60504.0,0.32833182]
[1726268873297,1.3058631,60505.0,60478.0,0.00112]
[1726268873602,0.3608,60494.0,60493.0,0.082608]
[1726268874191,0.3608,60494.0,60476.0,0.3608]
[1726268874492,0.3608,60488.0,60476.0,0.3608]
[1726268875100,0.3608,60477.0,60476.0,0.00514667]
[1726268875296,0.3608,60477.0,60476.0,0.082631]
[1726268875497,0.3608,60477.0,60476.0,1.178711]
[1726268875897,0.3608,60477.0,60476.0,1.192711]
[1726268876100,0.3608,60477.0,60476.0,0.592711]
[1726268876408,0.3608,60477.0,60476.0,0.096631]
[1726268876597,0.3608,60477.0,60476.0,0.014]
[1726268876797,0.3618,60477.0,60476.0,0.014]
[1726268878515,0.3618,60477.0,60476.0,0.012]
[1726268878807,0.3618,60477.0,60476.0,0.09965118]